fUST/lending_fUST_20240709
["ID","MTS","AMOUNT","RATE_DAILY","PERIOD"]
[331556453,1720498254297,-4764.46,0.00045205,30]
[331556454,1720498254306,-500.0,0.00045205,30]
[331556455,1720498254315,-1474.57,0.00045205,30]
[331556456,1720498254324,-927.65,0.00045205,30]
[331556457,1720498254333,-534.256628,0.00045205,2]
[331556458,1720498254342,-7917.1,0.00045205,2]
[331556459,1720498254351,-500.0,0.00045205,30]
[331556460,1720498254360,-7027.52,0.00045205,7]
[331556461,1720498254370,-845.83,0.00045205,30]
[331556462,1720498254379,-868.46,0.00045205,30]
[331556463,1720498254388,-500.0,0.00045205,30]
[331556464,1720498254397,-767.55,0.00045205,30]
[331556465,1720498254407,-569.56,0.00045205,30]
[331556466,1720498254424,-6012.72,0.00045205,30]
[331556467,1720498254436,-632.14,0.00045205,30]
[331556468,1720498254445,-500.0,0.00045205,30]
[331556469,1720498254456,-500.0,0.00045205,2]
[331556470,1720498254466,-500.0,0.00045205,30]
[331556471,1720498254475,-1760.15,0.00045205,30]
[331556472,1720498254485,-500.0,0.00045205,30]
[331556473,1720498254496,-500.0,0.00045205,30]
[331556474,1720498254506,-1361.3,0.00045205,30]
[331556475,1720498254515,-13593.75,0.00045205,30]
[331556476,1720498254524,-500.0,0.00045205,30]
[331556477,1720498254533,-500.0,0.00045205,30]
[331556478,1720498254543,-500.0,0.00045205,30]
[331556479,1720498254552,-500.0,0.00045205,30]
[331556480,1720498254562,-500.0,0.00045205,30]
[331556481,1720498254571,-981.59,0.00045205,30]
[331556482,1720498254580,-500.0,0.00045205,30]
[331556483,1720498254590,-539.11,0.00045205,30]
[331556484,1720498254600,-1095.58,0.00045205,30]
[331556485,1720498254609,-265.13457741,0.00045205,30]
[331556486,1720498254618,-1499.1,0.00045205,30]
[331556487,1720498254628,-504.6,0.00045205,30]
[331556488,1720498254637,-500.0,0.00045205,30]
[331556489,1720498254646,-500.0,0.00045205,30]
[331556490,1720498254655,-3355.8,0.00045205,30]
[331556491,1720498254664,-1046.01742144,0.00045205,30]
[331556492,1720498254685,-193.20257856,0.00045205,30]
[331556493,1720498254694,-500.0,0.00045205,10]
[331556494,1720498254703,-306.79742144,0.00045205,30]
[331556495,1720498254744,-219.51715118,0.0001818,2]
[331556496,1720498254753,-813.14107465,0.00027184,7]
[331556497,1720498254764,-4250.26628498,0.00041068,2]
[331556498,1720498254773,-180.63023842,0.00045205,30]
[331556499,1720498254782,-772.73,0.00045205,30]
[331556500,1720498254792,-591.74,0.00045205,30]
[331556501,1720498254801,-500.0,0.00045205,30]
[331556502,1720498254811,-2470.91,0.00045205,30]
[331556503,1720498254820,-500.0,0.00045205,30]
[331556504,1720498254829,-772.61,0.00045205,30]
[331556505,1720498254838,-547.38,0.00045205,30]
[331556506,1720498254847,-2559.58,0.00045205,30]
[331556507,1720498254857,-1002.19,0.00045205,30]
[331556508,1720498254866,-516.17072587,0.00045205,30]
[331556509,1720498254875,-1186.7,0.00045205,30]
[331556510,1720498254885,-763.47,0.00045205,30]
[331556511,1720498254894,-632.49,0.00045205,30]
[331556512,1720498254903,-935.5,0.00045205,30]
[331556513,1720498254912,-500.0,0.00045205,2]
[331556514,1720498254922,-518.22,0.00045205,30]
[331556515,1720498254931,-656.71,0.00045205,30]
[331556516,1720498254940,-617.73,0.00045205,30]
[331556517,1720498254949,-500.0,0.00045205,30]
[331556518,1720498254959,-500.0,0.00045205,30]
[331556519,1720498254968,-436.30371002,0.00045205,120]
[331556520,1720498254977,-272.107494,0.00045205,14]
[331556521,1720498254986,-272.107494,0.00045205,14]
[331556522,1720498254996,-352.456612,0.00045205,14]
[331556523,1720498255006,-352.456612,0.00045205,14]
[331556524,1720498255015,-151.0,0.00045205,14]
[331556525,1720498255025,-1360.0,0.00045205,30]
[331556526,1720498255035,-151.0,0.00045205,14]
[331556527,1720498255046,-1500.0,0.00045205,14]
[331556528,1720498255055,-1500.0,0.00045205,14]
[331556529,1720498255064,-1500.0,0.00045205,14]
[331556530,1720498255072,-1500.0,0.00045205,14]
[331556531,1720498255139,-1500.0,0.00045205,14]
[331556532,1720498255148,-1500.0,0.00045205,14]
[331556533,1720498255157,-1099.453106,0.00045205,14]
[331556534,1720498255166,-9999.0,0.00045205,14]
[331556535,1720498255176,-151.0,0.00045205,14]
[331556536,1720498255185,-597.139721,0.00045205,2]
[331556537,1720498255195,-155.293158,0.00045205,14]
[331556538,1720498255204,-597.139721,0.00045205,2]
[331556539,1720498255213,-151.0,0.00045205,14]
[331556540,1720498255222,-151.0,0.00045205,14]
[331556541,1720498255232,-150.0,0.00045213,2]
[331556542,1720498255241,-1405.0,0.00045234,2]
[331556543,1720498255250,-500.0,0.00045479,30]
[331556544,1720498255260,-500.0,0.00045479,30]
[331556545,1720498255270,-500.0,0.00045479,30]
[331556546,1720498255279,-500.0,0.00045479,30]
[331556547,1720498255289,-1154.73,0.00045479,30]
[331556548,1720498255298,-500.0,0.00045479,30]
[331556549,1720498255307,-500.0,0.00045479,30]
[331556550,1720498255317,-500.0,0.00045479,30]
[331556551,1720498255326,-458.87151086,0.00045479,30]
[331556552,1720498255336,-500.0,0.00045479,30]
[331556553,1720498255345,-625.0,0.00045479,30]
[331556554,1720498255355,-539.33,0.00045479,30]
[331556555,1720498255364,-500.0,0.00045479,30]
[331556556,1720498255374,-500.0,0.00045479,30]
[331556557,1720498255383,-500.0,0.00045479,30]
[331556558,1720498255392,-500.0,0.00045479,30]
[331556559,1720498255402,-500.0,0.00045479,30]
[331556560,1720498255411,-500.0,0.00045479,30]
[331556561,1720498255422,-500.0,0.00045479,30]
[331556562,1720498255433,-500.0,0.00045479,30]
[331556563,1720498255443,-500.0,0.00045479,30]
[331556564,1720498255452,-500.0,0.00045479,30]
[331556565,1720498255463,-500.0,0.00045479,30]
[331556566,1720498255473,-500.0,0.00045479,30]
[331556567,1720498255483,-1265.75,0.00045479,30]
[331556568,1720498255493,-500.0,0.00045479,30]
[331556569,1720498255507,-500.0,0.00045479,30]
[331556570,1720498255517,-500.0,0.00045479,30]
[331556571,1720498255527,-1693.93,0.00045479,30]
[331556572,1720498255538,-500.0,0.00045479,30]
[331556573,1720498255548,-500.0,0.00045479,30]
[331556574,1720498255558,-946.46,0.00045479,30]
[331556575,1720498255568,-500.0,0.00045479,30]
[331556576,1720498255577,-624.04,0.00045479,30]
[331556577,1720498255587,-507.31192253,0.00045479,30]
[331556578,1720498255596,-1245.22,0.00045479,30]
[331556579,1720498255606,-500.0,0.00045479,30]
[331556580,1720498255615,-216.78744257,0.00045479,30]
[331556581,1720498255625,-500.0,0.00045479,30]
[331556582,1720498255634,-500.0,0.00045479,30]
[331556583,1720498255644,-500.0,0.00045479,30]
[331556584,1720498255653,-197.52751276,0.00045479,30]
[331556739,1720499438859,-370.03737921,0.00016153,2]
[331556741,1720499438924,-2765.05110895,0.00016153,2]
[331556742,1720499438934,-300.0,0.00016244,2]
[331556743,1720499438944,-300.0,0.00016244,2]
[331556744,1720499438954,-235.21705193,0.00016244,2]
[331556745,1720499438964,-165.05596331,0.00016244,2]
[331556746,1720499438974,-11332.27982989,0.00016245,2]
[331556747,1720499438985,-38321.50237311,0.00016245,2]
[331556748,1720499438995,-57244.60275606,0.00016254,2]
[331556749,1720499439005,-42248.84590217,0.00016255,2]
[331556750,1720499439016,-166.666666,0.00016438,2]
[331556751,1720499439025,-276.64310743,0.00016822,2]
[331556752,1720499439045,-166.666666,0.00016823,2]
[331556753,1720499439058,-276.64310743,0.00016824,2]
[331556754,1720499439069,-166.666666,0.00017208,2]
[331556755,1720499439080,-166.666666,0.00017592,2]
[331556756,1720499439091,-420.0,0.00017868,2]
[331556757,1720499439101,-166.666666,0.00017977,2]
[331556758,1720499439112,-166.666666,0.00018362,2]
[331556759,1720499439122,-250.0,0.00019041,2]
[331556760,1720499439132,-162.700533,0.00019178,2]
[331556761,1720499439143,-24900.0,0.00019616,2]
[331556762,1720499439154,-587.0,0.00019655,2]
[331556763,1720499439164,-750.0,0.00021096,2]
[331556764,1720499439177,-160.759679,0.00021096,2]
[331556765,1720499439187,-823.0,0.00021621,2]
[331556766,1720499439198,-162.498989,0.00021704,2]
[331556767,1720499439208,-163.12137,0.00022555,2]
[331556768,1720499439218,-1000.0,0.00022942,10]
[331556769,1720499439228,-1152.0,0.00023783,2]
[331556770,1720499439239,-488.46895295,0.00023955,2]
[331556771,1720499439249,-174.05491823,0.00023955,2]
[331556772,1720499439259,-460.74258664,0.00023955,2]
[331556773,1720499439289,-500.0,0.00023955,2]
[331556774,1720499439300,-500.0,0.00023955,2]
[331556775,1720499439310,-226.36863597,0.00023955,2]
[331556776,1720499439320,-500.0,0.00023955,2]
[331556777,1720499439330,-500.0,0.00023955,2]
[331556778,1720499439340,-500.0,0.00023955,2]
[331556779,1720499439349,-500.0,0.00023955,2]
[331556780,1720499439359,-500.0,0.00023955,2]
[331556781,1720499439368,-500.0,0.00023955,2]
[331556782,1720499439378,-500.0,0.00023955,2]
[331556783,1720499439388,-315.88649117,0.00023955,2]
[331556784,1720499439398,-500.0,0.00023955,2]
[331556785,1720499439407,-500.0,0.00023955,2]
[331556786,1720499439417,-500.0,0.00023955,2]
[331556787,1720499439426,-500.0,0.00023955,2]
[331556788,1720499439435,-500.0,0.00023955,2]
[331556789,1720499439445,-500.0,0.00023955,2]
[331556790,1720499439455,-300.0,0.00023955,2]
[331556791,1720499439464,-500.0,0.00023955,2]
[331556792,1720499439474,-500.0,0.00023955,2]
[331556793,1720499439484,-500.0,0.00023955,2]
[331556794,1720499439494,-500.0,0.00023955,2]
[331556795,1720499439504,-500.0,0.00023955,2]
[331556796,1720499439514,-500.0,0.00023955,2]
[331556797,1720499439523,-500.0,0.00023955,2]
[331556798,1720499439533,-500.0,0.00023955,2]
[331556799,1720499439543,-531.65393647,0.00023955,2]
[331556800,1720499439554,-300.0,0.00023955,2]
[331556801,1720499439564,-49653.782203,0.00023956,3]
[331556802,1720499439574,-69518.97823078,0.00025491,3]
[331556803,1720499439588,-79442.36837822,0.00025491,3]
[331556804,1720499439598,-16019.67700079,0.00025501,2]
[331556805,1720499439610,-9862.28999998,0.00025501,2]
[331556824,1720499441294,-30766.10382965,0.00025501,2]
[331556825,1720499441306,-43421.45033214,0.00025501,2]
[331556826,1720499441386,-901.0,0.00026161,2]
[331556827,1720499441406,-30000.0,0.00027184,2]
[331556828,1720499441416,-750.0,0.00027195,2]
[331556829,1720499441426,-23676.514605,0.00027387,3]
[331556931,1720500446999,6754.61669602,0.00014998,2]
[331556933,1720500472611,217.72515829,0.00014998,2]
[331556937,1720500572841,217.72515829,0.00014998,2]
[331556954,1720500632065,-434.4293937,0.00015214,2]
[331556955,1720500632903,-268.3476574,0.00015214,2]
[331556957,1720500632914,-6.6523426,0.00015262,2]
[331556960,1720500632931,-193.405105,0.00015262,2]
[331556964,1720500632942,-241.74910557,0.00015432,2]
[331556968,1720500632954,-245.23623435,0.00015532,2]
[331557060,1720500637913,-54.76376565,0.00015532,2]
[331557062,1720500637923,-24900.0,0.00015533,2]
[331557063,1720500637932,-17258.59312702,0.00016255,2]
[331557064,1720500637942,-15593.29308396,0.00016255,2]
[331557065,1720500637951,-2219.16977418,0.00016255,2]
[331557066,1720500637960,-166.666666,0.00016438,2]
[331557067,1720500637969,-166.666666,0.00016823,2]
[331557068,1720500637978,-420.0,0.00017085,2]
[331557069,1720500637988,-166.666666,0.00017208,2]
[331557070,1720500637998,-206.63267818,0.000174,2]
[331557071,1720500638007,-166.666666,0.00017592,2]
[331557072,1720500638017,-1982.49128326,0.000176,2]
[331557075,1720500638081,-1000.0,0.00017878,10]
[331557076,1720500638108,-166.666666,0.00017977,2]
[331557077,1720500638123,-217.72515829,0.00018179,2]
[331557078,1720500638133,-166.666666,0.00018362,2]
[331557079,1720500638144,-325.0,0.00018793,2]
[331557080,1720500638155,-3028.51482302,0.000189,2]
[331557081,1720500638165,-250.0,0.00019041,2]
[331557082,1720500638175,-185.78249617,0.000191,2]
[331557083,1720500638185,-162.810183,0.00019178,2]
[331557084,1720500638197,-162.910951,0.00019178,2]
[331557085,1720500638207,-1000.0,0.00019989,10]
[331557086,1720500638217,-460.74258664,0.00019989,2]
[331557087,1720500638226,-500.0,0.00019989,2]
[331557088,1720500638236,-341.92826706,0.00019989,2]
[331557089,1720500638245,-500.0,0.00019989,2]
[331557090,1720500638254,-500.0,0.00019989,2]
[331557091,1720500638263,-226.36863597,0.00019989,2]
[331557092,1720500638273,-500.0,0.00019989,2]
[331557093,1720500638282,-500.0,0.00019989,2]
[331557094,1720500638291,-500.0,0.00019989,2]
[331557095,1720500638301,-500.0,0.00019989,2]
[331557096,1720500638310,-500.0,0.00019989,2]
[331557097,1720500638319,-615.88649117,0.00019989,2]
[331557098,1720500638329,-500.0,0.00019989,2]
[331557099,1720500638338,-500.0,0.00019989,2]
[331557100,1720500638347,-500.0,0.00019989,2]
[331557101,1720500638357,-500.0,0.00019989,2]
[331557102,1720500638367,-500.0,0.00019989,2]
[331557103,1720500638376,-500.0,0.00019989,2]
[331557104,1720500638385,-500.0,0.00019989,2]
[331557105,1720500638395,-500.0,0.00019989,2]
[331557106,1720500638404,-280.57460314,0.00019989,2]
[331557107,1720500638414,-153926.724829,0.0001999,2]
[331557108,1720500638423,-21004.02252795,0.0002,2]
[331557109,1720500638433,-52946.73685478,0.0002,2]
[331557110,1720500638442,-4855.00134939,0.0002,2]
[331557111,1720500638451,-49117.796117,0.0002,2]
[331557112,1720500638460,-153.95020535,0.0002,2]
[331557113,1720500638469,-750.0,0.00021096,2]
[331557114,1720500638479,-222.86799845,0.000212,2]
[331557115,1720500638488,-21332.21748007,0.00022942,2]
[331557116,1720500638497,-3028.51482302,0.000239,2]
[331557117,1720500638506,-51308.9082764,0.0002439,3]
[331557118,1720500638515,-44250.7833899,0.000244,2]
[331557119,1720500638525,-7427.1094573,0.00025,60]
[331557120,1720500638534,-748.40623503,0.00025005,2]
[331557121,1720500638543,-51308.9082764,0.00025491,3]
[331557122,1720500638553,-52136.2205257,0.00025501,2]
[331557123,1720500638562,-1398.71037267,0.00025501,4]
[331557124,1720500638571,-766.51384343,0.00025501,2]
[331557125,1720500638584,-949.73040029,0.00025501,2]
[331557126,1720500638593,-51308.9082764,0.0002648,3]
[331557127,1720500638604,-7458.94652043,0.0002649,2]
[331557128,1720500638613,-2058.61750007,0.000266,2]
[331557129,1720500638623,-366.61198732,0.00026885,2]
[331557130,1720500638633,-150.0,0.00027099,2]
[331557131,1720500638642,-5292.21400908,0.00027121,2]
[331557132,1720500638651,-30000.0,0.00027184,2]
[331557133,1720500638660,-177.17588808,0.00027184,2]
[331557134,1720500638670,-244.11093245,0.00027184,2]
[331557135,1720500638679,-1580.53894604,0.00027184,2]
[331557136,1720500638688,-158.25494522,0.00027194,2]
[331557137,1720500638698,-154.74467129,0.00027194,2]
[331557138,1720500638707,-154.74467129,0.00027194,2]
[331557139,1720500638716,-150.0,0.00027195,7]
[331557140,1720500638725,-750.0,0.00027195,2]
[331557141,1720500638734,-1194.74753859,0.00027387,14]
[331557142,1720500638743,-6863.87493251,0.00027387,2]
[331557143,1720500638753,-433.24056988,0.00027387,2]
[331557144,1720500638762,-155.29878261,0.00027387,2]
[331557145,1720500638771,-190.10965424,0.00027387,10]
[331557146,1720500638780,-763.79636746,0.00027387,2]
[331557147,1720500638790,-189.22156458,0.00027387,2]
[331557148,1720500638799,-428.24738691,0.00027387,2]
[331557149,1720500638808,-264.58175342,0.00027387,2]
[331557150,1720500638817,-169.7492569,0.00027387,2]
[331557151,1720500638827,-500.0,0.00027397,2]
[331557152,1720500638836,-500.0,0.00027397,2]
[331557153,1720500638845,-500.0,0.00027397,2]
[331557154,1720500638855,-500.0,0.00027397,2]
[331557155,1720500638864,-500.0,0.00027397,2]
[331557156,1720500638874,-500.0,0.00027397,2]
[331557157,1720500638883,-500.0,0.00027397,2]
[331557158,1720500638892,-500.0,0.00027397,2]
[331557159,1720500638901,-500.0,0.00027397,2]
[331557160,1720500638911,-500.0,0.00027397,2]
[331557161,1720500638920,-500.0,0.00027397,2]
[331557162,1720500638929,-500.0,0.00027397,2]
[331557163,1720500638939,-500.0,0.00027397,2]
[331557164,1720500638948,-500.0,0.00027397,2]
[331557165,1720500638960,-500.0,0.00027397,2]
[331557166,1720500638970,-500.0,0.00027397,2]
[331557167,1720500638980,-500.0,0.00027397,2]
[331557168,1720500638990,-500.0,0.00027397,2]
[331557169,1720500638999,-500.0,0.00027397,2]
[331557170,1720500639008,-500.0,0.00027397,2]
[331557171,1720500639017,-500.0,0.00027397,2]
[331557172,1720500639027,-484.66986732,0.00027397,2]
[331557173,1720500639038,-500.0,0.00027397,2]
[331557174,1720500639047,-500.0,0.00027397,2]
[331557175,1720500639058,-500.0,0.00027397,2]
[331557176,1720500639068,-500.0,0.00027397,2]
[331557177,1720500639079,-500.0,0.00027397,2]
[331557178,1720500639089,-500.0,0.00027397,2]
[331557179,1720500639100,-500.0,0.00027397,2]
[331557180,1720500639115,-500.0,0.00027397,2]
[331557181,1720500639126,-500.0,0.00027397,2]
[331557182,1720500639136,-500.0,0.00027397,2]
[331557183,1720500639147,-500.0,0.00027397,2]
[331557184,1720500639157,-500.0,0.00027397,2]
[331557185,1720500639167,-500.0,0.00027397,2]
[331557186,1720500639178,-500.0,0.00027397,2]
[331557187,1720500639190,-500.0,0.00027397,2]
[331557188,1720500639201,-500.0,0.00027397,2]
[331557189,1720500639212,-500.0,0.00027397,2]
[331557190,1720500639222,-500.0,0.00027397,2]
[331557191,1720500639233,-500.0,0.00027397,2]
[331557192,1720500639244,-500.0,0.00027397,2]
[331557193,1720500639255,-500.0,0.00027397,2]
[331557194,1720500639266,-500.0,0.00027397,2]
[331557195,1720500639330,-500.0,0.00027397,2]
[331557196,1720500639348,-500.0,0.00027397,2]
[331557197,1720500639362,-500.0,0.00027397,2]
[331557198,1720500639372,-1011.26066005,0.00027397,2]
[331557199,1720500639381,-1011.26066005,0.00027397,2]
[331557200,1720500639391,-1011.26066005,0.00027397,2]
[331557201,1720500639402,-1011.26066005,0.00027397,2]
[331557202,1720500639411,-1011.26066005,0.00027397,2]
[331557203,1720500639421,-1011.26066005,0.00027397,2]
[331557205,1720500639431,-1011.26066005,0.00027397,2]
[331557206,1720500639441,-1011.26066005,0.00027397,2]
[331557207,1720500639451,-1011.26066005,0.00027397,2]
[331557208,1720500639461,-1011.26066005,0.00027397,2]
[331557209,1720500639470,-1011.26066005,0.00027397,2]
[331557210,1720500639481,-1011.26066005,0.00027397,2]
[331557211,1720500639491,-1011.26066005,0.00027397,2]
[331557212,1720500639500,-1011.26066005,0.00027397,2]
[331557213,1720500639510,-1011.26066005,0.00027397,2]
[331557214,1720500639520,-1011.26066005,0.00027397,2]
[331557215,1720500639530,-1011.26066005,0.00027397,2]
[331557216,1720500639540,-1011.26066005,0.00027397,2]
[331557217,1720500639549,-1011.26066005,0.00027397,2]
[331557219,1720500639559,-1011.26066005,0.00027397,2]
[331557220,1720500639568,-1011.26066005,0.00027397,2]
[331557222,1720500639578,-1011.26066005,0.00027397,2]
[331557224,1720500639589,-1011.26066005,0.00027397,2]
[331557226,1720500639599,-1011.26066005,0.00027397,2]
[331557229,1720500639614,-1011.26066005,0.00027397,2]
[331557232,1720500639623,-1011.26066005,0.00027397,2]
[331557233,1720500639633,-1011.26066005,0.00027397,2]
[331557235,1720500639642,-1011.26066005,0.00027397,2]
[331557236,1720500639652,-1011.26066005,0.00027397,2]
[331557237,1720500639661,-1011.26066005,0.00027397,2]
[331557238,1720500639671,-1011.26066005,0.00027397,2]
[331557239,1720500639680,-1011.26066005,0.00027397,2]
[331557240,1720500639690,-1011.26066005,0.00027397,2]
[331557241,1720500639699,-1075.16824257,0.00027397,2]
[331557243,1720500639709,-1075.16824257,0.00027397,2]
[331557245,1720500639719,-1075.16824257,0.00027397,2]
[331557248,1720500639729,-1075.16824257,0.00027397,2]
[331557250,1720500639738,-1075.16824257,0.00027397,2]
[331557252,1720500639747,-1075.16824257,0.00027397,2]
[331557254,1720500639757,-1075.16824257,0.00027397,2]
[331557256,1720500639766,-1075.16824257,0.00027397,2]
[331557258,1720500639776,-191.0559141,0.00027397,120]
[331557261,1720500639786,-154.62117811,0.00027399,2]
[331557263,1720500639795,-17977.66203987,0.000275,2]
[331557264,1720500639804,-276.64310743,0.00027999,2]
[331557265,1720500639814,-315.01266527,0.00027999,2]
[331557266,1720500639823,-172.42394717,0.00028,30]
[331557267,1720500639833,-3028.51482302,0.000289,2]
[331557268,1720500639843,-20198.34074,0.00029669,2]
[331557269,1720500639857,-248.18592096,0.000298,120]
[331557270,1720500639868,-703.65876633,0.00029999,2]
[331557271,1720500639878,-170.45207762,0.0003,4]
[331557272,1720500639888,-189.0,0.0003,2]
[331557273,1720500639898,-155.77089587,0.00031251,2]
[331557275,1720500639909,-212.13522694,0.00031251,4]
[331557277,1720500639919,-304.22675637,0.00031251,30]
[331557279,1720500639930,-158.57719136,0.00031251,4]
[331557281,1720500639941,-307.64906425,0.00032229,4]
[331557283,1720500639951,-155.2509691,0.00032229,4]
[331557285,1720500639961,-150.0,0.00032877,2]
[331557287,1720500639971,-189.0,0.00033,2]
[331557289,1720500639982,-154.62117811,0.00033196,4]
[331557291,1720500639993,-2372.02455725,0.00033292,60]
[331557293,1720500640003,-189.0,0.00033294,2]
[331557295,1720500640013,-750.0,0.00033295,2]
[331557297,1720500640023,-88745.31066533,0.00033333,2]
[331557298,1720500640033,-220521.23782879,0.00033807,2]
[331557299,1720500640042,-1431.78470865,0.00034467,2]
[331557300,1720500640052,-1092.51200049,0.00034592,21]
[331557301,1720500640062,-1092.51200049,0.00034592,21]
[331557302,1720500640071,-1182.49762447,0.00034623,4]
[331557303,1720500640081,-643.5565645,0.0003468,4]
[331557304,1720500640091,-643.5565645,0.0003468,4]
[331557305,1720500640105,-1282.49405735,0.00034728,12]
[331557306,1720500640118,-1000.0,0.000348,3]
[331557307,1720500640127,-154.62117811,0.00034899,2]
[331557308,1720500640136,-26468.49870678,0.000349,2]
[331557309,1720500640146,-192.802,0.00034935,30]
[331557310,1720500640156,-235.62575763,0.00034989,4]
[331557311,1720500640165,-203.13737373,0.00034989,2]
[331557312,1720500640174,-154.62117811,0.00034999,4]
[331557313,1720500640183,-154.62117811,0.00034999,4]
[331557314,1720500640195,-1662.41784921,0.00035,4]
[331557315,1720500640204,-1183.21854684,0.00035,2]
[331557316,1720500640213,-275.22284259,0.00035,120]
[331557317,1720500640222,-692.82385815,0.00035,30]
[331557318,1720500640231,-265.09411912,0.00035259,2]
[331557319,1720500640241,-685.72655826,0.00035259,4]
[331557320,1720500640250,-394.28228504,0.00035292,4]
[331557321,1720500640259,-394.28228504,0.00035292,4]
[331557322,1720500640268,-155.1936798,0.00035292,4]
[331557323,1720500640277,-256.79365305,0.00035581,2]
[331557324,1720500640287,-256.79365305,0.00035581,2]
[331557325,1720500640297,-154.78560711,0.00035581,4]
[331557326,1720500640306,-150.0,0.00035627,2]
[331557327,1720500640315,-1405.0,0.00035627,2]
[331557328,1720500640324,-154.62117811,0.00035999,4]
[331557329,1720500640333,-189.0,0.00036,2]
[331557330,1720500640344,-360.8874203,0.00036229,4]
[331557331,1720500640360,-189.0,0.00036294,2]
[331557332,1720500640369,-528.3,0.000365,62]
[331557333,1720500640377,-242.71540794,0.00037,4]
[331557334,1720500640386,-5910.9073751,0.000379,2]
[331557335,1720500640395,-2934.1716183,0.00038,2]
[331557336,1720500640405,-536.07685891,0.00038,30]
[331557337,1720500640414,-38658.21543801,0.0003849,20]
[331557338,1720500640423,-208.81360879,0.00038499,4]
[331557339,1720500640432,-135740.15833242,0.00038499,14]
[331557340,1720500640503,-157256.75794758,0.00038499,14]
[331557341,1720500640513,-516222.5410748,0.000385,2]
[331557342,1720500640522,-155.735033,0.000385,14]
[331557343,1720500640531,-151.0,0.000385,14]
[331557344,1720500640540,-151.0,0.000385,14]
[331557345,1720500640549,-246.719629,0.000385,14]
[331557346,1720500640558,-246.719629,0.000385,14]
[331557347,1720500640567,-151.0,0.000385,14]
[331557348,1720500640577,-151.0,0.000385,14]
[331557349,1720500640587,-151.0,0.000385,14]
[331557350,1720500640596,-151.0,0.000385,14]
[331557351,1720500640610,-152.713107,0.000385,14]
[331557352,1720500640620,-417.997805,0.000385,2]
[331557353,1720500640629,-417.997805,0.000385,2]
[331557354,1720500640639,-151.0,0.000385,14]
[331557355,1720500640648,-1740.043342,0.000385,14]
[331557356,1720500640657,-1740.043342,0.000385,14]
[331557357,1720500640667,-1007.544524,0.000385,27]
[331557358,1720500640676,-151.0,0.000385,14]
[331557359,1720500640685,-151.0,0.00038574,14]
[331557360,1720500640694,-151.0,0.00038574,14]
[331557361,1720500640703,-168.040691,0.00038574,14]
[331557362,1720500640713,-151.0,0.00038574,14]
[331557363,1720500640722,-154.62117711,0.00038575,2]
[331557364,1720500640730,-2036.86968239,0.00038575,120]
[331557365,1720500640739,-103286.8244346,0.00038575,7]
[331557366,1720500640752,-31804.36350767,0.00038575,7]
[331557367,1720500640785,-154.84561839,0.00027399,2]
[331557368,1720500640794,-245.4946204,0.00034989,4]
[331557369,1720500640803,-101.64184892,0.00035616,3]
[331557370,1720500640814,-13347.90815108,0.00035616,3]
[331557371,1720500640823,-241.754,0.00035627,2]
[331557372,1720500640832,-435.0,0.00036351,2]
[331557373,1720500640840,-84724.30278606,0.00038575,7]
[331557486,1720501470775,250.0,0.00014793,2]
[331557493,1720501568831,217.72515829,0.00014793,2]
[331557494,1720501569877,-300.0,0.00015163,2]
[331557495,1720501569913,-24900.0,0.00015164,2]
[331557497,1720501583598,217.72515829,0.00014793,2]
[331557498,1720501607475,-750.3151177,0.000153,2]
[331557499,1720501607509,-661.765769,0.0001573,2]
[331557500,1720501607549,-6087.36329663,0.00016155,2]
[331557501,1720501607584,-186.07363022,0.00016244,2]
[331557502,1720501607618,-41100.5492565,0.00016245,2]